Cogmind - Beta 11.1 @@@ ROGUE MODE // 2022.06.17 @ 15:01:59 Player: Demise Result: Destroyed by S-10 Pest with Light Assault Rifle Performance ------------- Evolutions (0) 0 Regions Visited (1) 200 Robots Destroyed (32) 160 Value Destroyed (571) 571 Prototype IDs (2) 40 Alien Tech Used (0) 0 Bonus (0) 0 TOTAL SCORE: 971 Bonus ------- None Cogmind --------- Core Integrity 0/250 Matter 295/300 Energy 97/100 System Corruption 0% Temperature Cool (0) Movement Rolling (110) Ox2 Location -10/Materials Parts ------- > --- POWER (1) -------- (None) > --- PROPULSION (2) --- Wheel Wheel > --- UTILITY (2) ------ High-capacity Storage Unit Light Armor Plating > --- WEAPON (2) ------- Light Assault Rifle Light Cannon > --- INVENTORY (20) --- Wheel Wheel Wheel Wheel Improved Terrain Scanner Seismic Detector Seismic Detector Light Armor Plating Light Armor Plating Light Armor Plating Light Armor Plating Light Armor Plating Light Armor Plating Tractor Beam Light EM Pulse Cannon Light EM Pulse Cannon Light Cannon Light Cannon Light Cannon Peak State ------------ > --- POWER ------------ Ion Engine > --- PROPULSION ------- Wheel Wheel > --- UTILITY ---------- Small Storage Unit Seismic Detector > --- WEAPON ----------- Assault Rifle Assault Rifle > --- INVENTORY -------- Wheel Wheel Wheel Improved Terrain Scanner Improved Terrain Scanner Small Laser [Rating: 8] Favorites ----------- Power Ion Engine Engine Ion Engine Propulsion Wheel Wheel Wheel Utility High-capacity Storage Unit Device Seismic Detector Storage High-capacity Storage Unit Protection Light Armor Plating Weapon Light Assault Rifle Ballistic Gun Light Assault Rifle Ballistic Cannon Light Cannon Build | -11 -10 ------- Run | Scr Mat Slots Evolved . | . . Power . | . . Propulsion . | . . Utility . | . . Weapon . | . . Parts Attached 21 | 9 12 Power 1 | 1 . Engine 1 | 1 . Core . | . . Reactor . | . . Propulsion 6 | 2 4 Treads . | . . Leg . | . . Wheel 6 | 2 4 Hover . | . . Flight . | . . Utility 9 | 4 5 Device 5 | 3 2 Storage 3 | 1 2 Processor . | . . Hackware . | . . Protection 1 | . 1 Artifact . | . . Weapon 5 | 2 3 Energy Gun . | . . Energy Cannon . | . . Ballistic Gun 4 | 2 2 Ballistic Cannon 1 | . 1 Launcher . | . . Special Weapon . | . . Impact Weapon . | . . Slashing Weapon . | . . Piercing Weapon . | . . Special Melee Weapon . | . . Unidentified Prototypes . | . . Parts Lost 7 | . 7 Power 1 | . 1 Propulsion 3 | . 3 Utility . | . . Weapon 3 | . 3 Highest Loss Streak 5 | . 5 To Critical Strikes . | . . Average Slot Usage (%) 85 | . 85 Engine 5 | . 5 Wheel 26 | . 26 Device 7 | . 7 Storage 14 | . 14 Protection 2 | . 2 Ballistic Gun 26 | . 26 Ballistic Cannon 1 | . 1 Naked Turns . | . . Heaviest Build 50 | 15 50 Greatest Support 20 | 20 20 Greatest Overweight (x) 4 | . 4 Average Overweight (x) 1 | . 1 Largest Inventory Capacity 20 | 8 20 Average Capacity 16 | 7 17 Most Carried 20 | 8 20 Average Carried 11 | 3 12 Final Capacity 20 | 8 20 Final Carried 19 | 8 19 Class Distribution -------------------- 79% | Mutant 20% | Scavenger-Mutant Dominant Class ---------------- Mutant | -10/Materials Resources | -11 -10 ----------- Run | Scr Mat Matter Collected 826 | 362 464 Remotely 227 | 227 . Salvage Created 950 | 179 771 Parts 67 | 22 45 Haulers Intercepted 1 | . 1 Recyclers Shooed 1 | . 1 Parts Field Recycled . | . . Retrieved Matter . | . . Parts Self-Destructed . | . . Prevented . | . . Kills | -11 -10 ------- Run | Scr Mat Combat Hostiles Destroyed 20 | . 20 Guns 18 | . 18 Cannons 2 | . 2 Classes Destroyed 7 | 3 4 Worker 2 | 2 . Tunneler 5 | 5 . Hauler 1 | . 1 Recycler 2 | 1 1 Watcher 2 | . 2 Swarmer 8 | . 8 Grunt 12 | . 12 Best Kill Streak 6 | 6 6 Combat Bots Only 4 | . 4 Max Kills in Single Turn 2 | 2 1 Gunslinging . | . . Exploded . | . . Melee . | . . Uniques/NPCs Destroyed . | . . Combat | -11 -10 -------- Run | Scr Mat Damage Taken 990 | . 990 Core 257 | . 257 Absorbed by Shields . | . . Core Remaining (%) 100 | 100 . Volleys Fired 127 | 12 115 Largest 2 | 2 2 Hottest 55 | 40 55 Shots Fired 241 | 24 217 Gun 230 | 24 206 Cannon 11 | . 11 Launcher . | . . Special . | . . Kinetic 241 | 24 217 Thermal . | . . Explosive . | . . Electromagnetic . | . . Robot Hit Streak 10 | 3 10 Robot Miss Streak 4 | 2 4 Penetration Max . | . . Secondary Targets 1 | . 1 Max Gunslinging Chain 1 | . 1 Shots Hit Robots 143 | 12 131 Core Hits 56 | 9 47 Critical Kills 1 | . 1 Critical Parts Destroyed 1 | . 1 Critical Strikes 3 | . 3 Destroy 2 | . 2 Blast 1 | . 1 Melee Attacks . | . . Impact . | . . Slashing . | . . Piercing . | . . Sneak Attacks . | . . Combat Hostiles . | . . Follow-up Attacks . | . . Damage Inflicted 1451 | 176 1275 Guns 1363 | 176 1187 Cannons 88 | . 88 Explosions . | . . Melee . | . . Ramming . | . . Kinetic 1451 | 176 1275 Thermal . | . . Explosive . | . . Electromagnetic . | . . Impact . | . . Slashing . | . . Piercing . | . . Highest Corruption . | . . Average Corruption . | . . Corruption Purged . | . . Corruption Blocked . | . . Overload Shots . | . . Overflow Damage . | . . Projectiles . | . . Explosions . | . . Melee . | . . Knockbacks . | . . Impact . | . . Kinetic . | . . Secondary . | . . Self-Inflicted Damage . | . . Shots . | . . Rammed . | . . Targets Rammed . | . . Kicked . | . . Crushed . | . . Highest Temperature 20 | . 20 Average Temperature 5 | . 5 Received Heat Transfer 390 | . 390 Siege Activations . | . . Robots Corrupted . | . . Combat Hostiles . | . . Parts Fried . | . . Impact Corruptions . | . . Robots Melted . | . . Combat Hostiles . | . . Parts Melted . | . . Heat Transferred . | . . Parts Sabotaged . | . . Parts Stolen . | . . Parts Stripped . | . . Power Chain Reactions . | . . Missiles Intercepted . | . . Alert | -11 -10 ------- Run | Scr Mat Peak Influence 391 | 40 391 Initial 26 | . 26 Average 212 | 20 235 Maximum Alert Level 1 | . 1 Low Security (%) 46 | 100 40 Level 1 53 | . 59 Level 2 . | . . Level 3 . | . . Level 4 . | . . Level 5 . | . . High Security . | . . Max Security . | . . Squads Dispatched 7 | . 7 Investigation 5 | . 5 Extermination . | . . Reinforcement 2 | . 2 Assault . | . . Garrison . | . . Intercept . | . . Searches Triggered . | . . Construction Impeded . | . . Haulers Reinforced . | . . Active Scanning Responses . | . . Cargo Convoy Interrupts . | . . Stealth | -11 -10 --------- Run | Scr Mat Distress Signals 3 | . 3 Communications Jammed . | . . Distress Signals . | . . Times Spotted 35 | . 35 Peak Tracking Total 5 | . 5 Tactical Retreats 2 | . 2 Traps | -11 -10 ------- Run | Scr Mat Traps Triggered 2 | . 2 Indirectly . | . . Trap Hack Attempts . | . . Triggered . | . . Disarmed . | . . Reprogrammed . | . . Reused . | . . Traps Extracted . | . . Installed . | . . Triggered . | . . Machines | -11 -10 ---------- Run | Scr Mat Machines Disabled . | . . Max in Single Turn . | . . Machines Sabotaged . | . . Garrisons Compromised . | . . Overloaded Fab Kills . | . . Hacking | -11 -10 --------- Run | Scr Mat Machines Accessed 8 | . 8 Terminals 6 | . 6 Fabricators . | . . Repair Stations . | . . Recycling Units 2 | . 2 Scanalyzers . | . . Garrison Access . | . . Total Hacks 30 | . 30 Successful 14 | . 14 Failed 15 | . 15 Catastrophic 2 | . 2 Database Lockouts 1 | . 1 Manual 22 | . 22 Terminals 25 | . 25 Fabricators . | . . Repair Stations . | . . Recycling Units 5 | . 5 Scanalyzers . | . . Garrison Access . | . . Terminal Hacks 4 | . 4 Robot Analysis 1 | . 1 Prototype ID Bank 1 | . 1 Locate Traps 1 | . 1 Zone Layout 1 | . 1 Fabricator Hacks . | . . Repair Station Hacks . | . . Recycling Unit Hacks 2 | . 2 Retrieve Components 2 | . 2 Scanalyzer . | . . Garrison Access Hacks . | . . Unauthorized Hacks 8 | . 8 Terminals 6 | . 6 Botnet 5 | . 5 Operators 1 | . 1 Fabricators . | . . Repair Stations . | . . Recycling Units 2 | . 2 Tunnel 2 | . 2 Scanalyzers . | . . Garrison Access . | . . Data Cores Recovered . | . . Used . | . . Hacking Detections 7 | . 7 Full Trace Events 5 | . 5 Feedback Events . | . . Feedback Blocked . | . . Robot Schematics Acquired . | . . Robots Built . | . . Authchips . | . . Time . | . . Total Robot Build Rating . | . . Part Schematics Acquired . | . . Parts Built . | . . Authchips . | . . Time . | . . Total Part Build Rating . | . . Parts Repaired . | . . Time . | . . Parts Recycled . | . . Recycled Matter . | . . Retrieved Matter . | . . Retrieved Components 6 | . 6 Parts Scanalyzed . | . . Part Schematics Acquired . | . . Parts Damaged . | . . Bothacking | -11 -10 ------------ Run | Scr Mat Used RIF Installer . | . . Robots Hacked . | . . Non-combat . | . . Combat . | . . Robot Hacks Applied . | . . Relay Couplers Released . | . . Fabnet Peak Effective % . | . . Robots Rewired . | . . Allies Hacked . | . . Hacks Repelled . | . . Allies | -11 -10 -------- Run | Scr Mat Total Allies . | . . Largest Group . | . . Highest-Rated Group . | . . Highest-Rated Ally . | . . Total Orders . | . . Ally Attacks . | . . Total Damage . | . . Kills . | . . Allies Corrupted . | . . Allies Melted . | . . Intel | -11 -10 ------- Run | Scr Mat Robot Analysis Total 1 | . 1 Derelict Logs Recovered . | . . Drone Launches . | . . Drone Recoveries . | . . Exploration | -11 -10 ------------- Run | Scr Mat Turns Passed 1236 | 134 1102 Spaces Moved 753 | 80 673 Core 2 | 2 . Treads . | . . Legs . | . . Wheels 751 | 78 673 Hover . | . . Flight . | . . Fastest Speed 50 | 50 80 Average Speed 101 | 79 103 Slowest Speed 140 | 80 140 Overloaded Moves . | . . Propulsion Burnouts . | . . Robots Hopped . | . . Cave-ins Triggered . | . . Exploration Rate (%) 45 | 3 88 Regions Visited 1 Branch Regions . Pre-discovered Areas 2 | . 2 Known Exits Taken . | . . Unknown Exits Taken 1 | 1 . Scrap Searched . | . . Spaces Dug . | . . Terrain Destroyed . | . . Melee . | . . Projectile . | . . AOE . | . . Terrain Rammed . | . . Walls Destroyed . | . . Machines Disabled . | . . Actions | -11 -10 --------- Run | Scr Mat Total 1022 | 129 893 Wait 60 | . 60 Move 752 | 79 673 Hop . | . . Pick Up 39 | 17 22 Fast Attach 10 | 8 2 Attach 7 | . 7 Detach 3 | 1 2 Swap 4 | 1 3 Drop 20 | 11 9 Fire 127 | 12 115 Melee . | . . Ram . | . . Kick . | . . Crush . | . . Escape Stasis . | . . Rewire . | . . Trap . | . . Miscellaneous . | . . Route ------- -11/Scrapyard -10/Materials (discovered 4 exits: [*Mat x3] / [*Min]) History --------- Turn | Location | Event 20 | -11/Scrapyard | Discovered new exit (range 16) 135 | -11/Scrapyard | Entered Materials 280 | -10/Materials | Discovered new exit (range 9) 311 | -10/Materials | Build established: Mutant 615 | -10/Materials | Lost 5 parts (1p2n2w) 616 | -10/Materials | Discovered new exit (range 15) 730 | -10/Materials | Core integrity fell below 50% 843 | -10/Materials | Discovered new exit (range 15) 915 | -10/Materials | Central database locked down 1216 | -10/Materials | Discovered new exit (range 16) 1225 | -10/Materials | Core integrity fell below 20% 1237 | -10/Materials | Destroyed by S-10 Pest with Light Assault Rifle Last Messages --------------- 01104_ K-01 Serf cleans the Fusion Modulator. 01105_ Acquired 1 matter. 01107_ K-01 Serf collects debris. 01109_ Acquired 1 matter. 01111_ K-01 Serf collects debris. 01111_ G-34 Mercenary destroyed. 01112_ Acquired 1 matter. 01114_ Acquired 10 matter. 01114_ A-02 Transporter destroyed. 01114_ K-01 Serf collects debris. 01158_ Acquired 5 matter. 01188_ Acquired 10 matter. 01216_ EXIT=FOUND 01217_ S-10 Pest destroyed. 01218_ Acquired 5 matter. 01220_ Destroyed Flight Unit. 01221_ Acquired 5 matter. 01231_ S-10 Pest Lgt. Ion Engine blasted off. 01231_ S-10 Pest destroyed. 01232_ Acquired 5 matter. Map ----- +----------------------------------------------------+ | """ ###### =%*# # | | """ + ^ == =# # | | """ #######+######## [% ""# """ # | | #???? ?????# * Y"# """"" # | | " #?? ??# % =*""# """"" # | | " # ! ### = + """"" # | | ##### + # """ # | | ????# ####+####### # | | ???#############+# #?# # | | ???# #?# # #?########## | | ???# #?# # ########???? | | ???# """ """ #?# # # #???? | | ???# """ """ #?# # # T | #???? | | ???# """ """ ### # # #???? | | ???# #"" # # / #???? | | ???# #T # = # ????? | | ???# ### #**% # ??????? | | ####+####+###### ##+##+##+##+##+#????? | | !=%=% ## #????? | | #####+##### ## #????? | | #??# #?# ## #????? | | ############??# ###+## #??? | | #???????# # o # ####### #??? | | "" #???????# # # #??????##??? | | "" #???????# # +=#??????????? | | "" #???????# =# #@#??????????? | | ###?????# # #[#??????????? | | #######T###??####### #%=??????????? | | #??# # #=*??????????? | | = #### """ # + ?????????? | | ! ""## "T" # # ?????????? | | [ " T"## ###### ????????? | | T ""## # ????????? | | " #### """ + ##???????? | | #??# """ # #????????? | | ! #??# """ # #????????? | | +## #??# """o# #????????? | | # ##+#### """ # #????????? | | # # # # %%#????????? | | # + """ # # *s/????????? | | #^^<^# """ ####### <%?????????? | | # # """ #?????# ???????????? | | % ###### #?????# ##???????????? | | #????# [ #?????# #????????????? | | ###????# #?????######????????????? | | ???????#######???????????????????????? | | ?????????????????????????????????????? | | ?????????????????????????????????????? | | | | | +----------------------------------------------------+ Best States ------------- Heat Dissipation 25 Energy Generation 10 Energy Capacity 450 Matter Stores 300 Matter Capacity 300 Sight Range 16 Terrain Scan Density 10 Armor Coverage 150 Evasion (%) 44 Item Schematics ----------------- None Robot Schematics ------------------ None Fabricated ------------ Nothing Alien Tech Used ----------------- None Achievements -------------- None Challenges ------------ None Game ------ Seed StorageDefenseLaser Manual? 0 Play Time 00:14:28 Cumulative 604.5 hours Start 2022.06.17 @ 14:50:44 End 2022.06.17 @ 15:01:59 Sessions 1 Manual Loads 0 Difficulty Rogue Special Mode None Game No. 486 Rogue 486 Adventurer 0 Explorer 0 Win Type - Total 5 Types 4/0/0/1/0/0/0/0/0 Lore% 72 Gallery% 84 Achievement% 66 Wizard Run 0 Options --------- ASCII 0 Keyboard 1 Movement Numpad Keybinds 0 Fullscreen 1 Font 12/Terminus Map View 83x54 Tactical HUD 1 Map Filters NONE Filters NONE Steam 1 RUN: 41170555-ba8a-4be5-9610-7de819645ac5